fUST/lending_fUST_20250630
["ID","MTS","AMOUNT","RATE_DAILY","PERIOD"]
[368604457,1751229039432,-460.0,0.00018336,2]
[368604458,1751229039442,-460.0,0.00018336,2]
[368604459,1751229039451,-460.0,0.00018336,2]
[368604460,1751229039460,-460.0,0.00018336,2]
[368604461,1751229039470,-554.2,0.00018336,2]
[368604462,1751229039479,-460.0,0.00018336,2]
[368604463,1751229039488,-460.0,0.00018336,2]
[368604464,1751229039498,-460.0,0.00018336,2]
[368604465,1751229039507,-460.0,0.00018336,2]
[368604466,1751229039517,-460.0,0.00018336,2]
[368604467,1751229039527,-460.0,0.00018336,2]
[368604468,1751229039536,-460.0,0.00018336,2]
[368604469,1751229039546,-460.0,0.00018336,2]
[368604470,1751229039555,-460.0,0.00018336,2]
[368604471,1751229039564,-460.0,0.00018336,2]
[368604472,1751229039574,-460.0,0.00018336,2]
[368604473,1751229039583,-460.0,0.00018336,2]
[368604474,1751229039593,-460.0,0.00018336,2]
[368604475,1751229039602,-460.0,0.00018336,2]
[368604476,1751229039612,-460.0,0.00018336,2]
[368604477,1751229039621,-460.0,0.00018336,2]
[368604479,1751229039631,-460.0,0.00018336,2]
[368604481,1751229039640,-460.0,0.00018336,2]
[368604482,1751229039650,-434.5096633,0.00018336,2]
[368604483,1751229039660,-460.0,0.00018336,2]
[368604484,1751229039669,-1055.91,0.00018336,2]
[368604485,1751229039679,-460.0,0.00018336,2]
[368604486,1751229039688,-460.0,0.00018336,2]
[368604487,1751229039699,-460.0,0.00018336,2]
[368604488,1751229039709,-460.0,0.00018336,2]
[368604489,1751229039719,-460.0,0.00018336,2]
[368604490,1751229039728,-460.0,0.00018336,2]
[368604492,1751229039738,-475.4,0.00018336,2]
[368604493,1751229039747,-868.93,0.00018336,2]
[368604494,1751229039757,-460.0,0.00018336,2]
[368604495,1751229039766,-460.0,0.00018336,2]
[368604496,1751229039776,-460.0,0.00018336,2]
[368604497,1751229039785,-1519.71,0.00018336,2]
[368604499,1751229039795,-460.0,0.00018336,2]
[368604500,1751229039804,-460.0,0.00018336,2]
[368604501,1751229039814,-677.78,0.00018336,2]
[368604502,1751229039823,-536.3,0.00018336,2]
[368604503,1751229039833,-460.0,0.00018336,2]
[368604504,1751229039843,-460.0,0.00018336,2]
[368604505,1751229039852,-1228.96,0.00018336,2]
[368604506,1751229039862,-2966.86,0.00018336,2]
[368604507,1751229039871,-460.0,0.00018336,2]
[368604508,1751229039881,-488.16,0.00018336,2]
[368604509,1751229039890,-372.82050294,0.00018336,2]
[368604510,1751229039900,-667.46,0.00018336,2]
[368604511,1751229039909,-696.8,0.00018336,2]
[368604512,1751229039918,-3718.65,0.00018336,2]
[368604513,1751229039930,-878.99,0.00018336,2]
[368604514,1751229039940,-1319.01,0.00018336,2]
[368604515,1751229039949,-460.0,0.00018337,2]
[368604516,1751229039959,-460.0,0.00018337,2]
[368604518,1751229039969,-460.0,0.00018337,2]
[368604519,1751229039978,-460.0,0.00018337,2]
[368604520,1751229039987,-460.0,0.00018337,2]
[368604521,1751229039997,-460.0,0.00018337,2]
[368604522,1751229040008,-460.0,0.00018337,2]
[368604523,1751229040018,-460.0,0.00018337,2]
[368604524,1751229040027,-460.0,0.00018337,2]
[368604525,1751229040037,-460.0,0.00018337,2]
[368604526,1751229040047,-460.0,0.00018337,2]
[368604527,1751229040057,-460.0,0.00018337,2]
[368604528,1751229040067,-460.0,0.00018337,2]
[368604529,1751229040076,-460.0,0.00018337,2]
[368604530,1751229040086,-460.0,0.00018337,2]
[368604531,1751229040096,-460.0,0.00018337,2]
[368604532,1751229040106,-460.0,0.00018337,2]
[368604533,1751229040116,-460.0,0.00018337,2]
[368604535,1751229040126,-460.0,0.00018337,2]
[368604537,1751229040135,-460.0,0.00018337,2]
[368604539,1751229040144,-460.0,0.00018337,2]
[368604541,1751229040153,-676.01,0.00018337,2]
[368604543,1751229040163,-460.0,0.00018337,2]
[368604545,1751229040172,-460.0,0.00018337,2]
[368604547,1751229040182,-550.52,0.00018337,2]
[368604549,1751229040191,-460.0,0.00018337,2]
[368604551,1751229040200,-460.0,0.00018337,2]
[368604553,1751229040210,-460.0,0.00018337,2]
[368604555,1751229040219,-209.62016079,0.00018337,2]
[368604557,1751229040229,-460.0,0.00018337,2]
[368604558,1751229040238,-460.0,0.00018337,2]
[368604559,1751229040247,-460.0,0.00018337,2]
[368604560,1751229040257,-460.0,0.00018337,2]
[368604561,1751229040266,-460.0,0.00018337,2]
[368604562,1751229040275,-500.0,0.00018339,2]
[368604563,1751229040285,-460.0,0.00018339,2]
[368604564,1751229040294,-460.0,0.00018339,2]
[368604565,1751229040304,-334.96244374,0.00018339,2]
[368604566,1751229040314,-524.00031119,0.00018339,2]
[368604567,1751229040324,-460.0,0.00018339,2]
[368604568,1751229040335,-460.0,0.00018339,2]
[368604569,1751229040345,-288.25951505,0.00018339,2]
[368604570,1751229040355,-460.0,0.00018339,2]
[368604571,1751229040364,-460.0,0.00018339,2]
[368604572,1751229040374,-552.70506603,0.00018339,2]
[368604573,1751229040383,-460.0,0.00018339,2]
[368604574,1751229040393,-378.56263419,0.00018339,2]
[368604575,1751229040404,-460.0,0.00018339,2]
[368604576,1751229040414,-374.46703859,0.00018339,2]
[368604577,1751229040423,-460.0,0.00018339,2]
[368604578,1751229040434,-460.0,0.00018339,2]
[368604579,1751229040443,-514.47,0.00018339,2]
[368604580,1751229040453,-460.0,0.00018339,2]
[368604581,1751229040463,-460.0,0.00018339,2]
[368604582,1751229040472,-460.0,0.00018339,2]
[368604584,1751229040482,-460.0,0.00018339,2]
[368604586,1751229040491,-460.0,0.00018339,2]
[368604588,1751229040501,-460.0,0.00018339,2]
[368604590,1751229040511,-460.0,0.00018339,2]
[368604591,1751229040521,-1000.0,0.00018339,2]
[368604592,1751229040531,-1000.0,0.00018339,2]
[368604593,1751229040540,-1000.0,0.00018339,2]
[368604594,1751229040549,-460.0,0.00018339,2]
[368604595,1751229040558,-217.63488768,0.00018339,2]
[368604596,1751229040568,-460.0,0.00018339,2]
[368604597,1751229040577,-460.0,0.00018339,2]
[368604598,1751229040586,-460.0,0.00018339,2]
[368604599,1751229040596,-460.0,0.00018339,2]
[368604600,1751229040605,-460.0,0.00018339,2]
[368604601,1751229040614,-460.0,0.00018339,2]
[368604602,1751229040623,-460.0,0.00018339,2]
[368604603,1751229040633,-460.0,0.00018339,2]
[368604604,1751229040643,-460.0,0.00018339,2]
[368604605,1751229040653,-626.38,0.00018339,2]
[368604606,1751229040662,-224.0596095,0.00018339,2]
[368604607,1751229040671,-460.0,0.00018339,2]
[368604608,1751229040681,-460.0,0.00018339,2]
[368604609,1751229040690,-460.0,0.00018339,2]
[368604610,1751229040700,-524.59,0.00018339,2]
[368604611,1751229040710,-460.0,0.00018339,2]
[368604612,1751229040720,-460.0,0.00018339,2]
[368604613,1751229040730,-460.0,0.00018339,2]
[368604614,1751229040740,-460.0,0.00018339,2]
[368604615,1751229040749,-460.0,0.00018339,2]
[368604616,1751229040758,-460.0,0.00018339,2]
[368604617,1751229040768,-460.0,0.0001834,2]
[368604618,1751229040777,-247.12402475,0.0001834,2]
[368604619,1751229040791,-212.87597525,0.0001834,2]
[368604620,1751229040800,-460.0,0.0001834,2]
[368604621,1751229040809,-460.0,0.0001834,2]
[368604622,1751229040818,-460.0,0.0001834,2]
[368604623,1751229040828,-460.0,0.0001834,2]
[368604624,1751229040837,-460.0,0.0001834,2]
[368604625,1751229040847,-460.0,0.0001834,2]
[368604626,1751229040856,-460.0,0.0001834,2]
[368604627,1751229040866,-460.0,0.0001834,2]
[368604628,1751229040875,-460.0,0.0001834,2]
[368604629,1751229040885,-460.0,0.0001834,2]
[368604630,1751229040894,-460.0,0.0001834,2]
[368604631,1751229040904,-460.0,0.0001834,2]
[368604632,1751229040913,-314.76241728,0.0001834,2]
[368604633,1751229040924,-996.0,0.00018407,2]
[368604634,1751229040935,-181.53816214,0.00018511,2]
[368604635,1751229040944,-996.0,0.00018587,2]
[368604636,1751229040954,-996.0,0.00018592,2]
[368604637,1751229040963,-4107.25698683,0.00018593,2]
[368604638,1751229040972,-460.0,0.00018607,2]
[368604639,1751229040982,-460.0,0.00018607,2]
[368604640,1751229040991,-460.0,0.00018607,2]
[368604641,1751229041000,-460.0,0.00018607,2]
[368604642,1751229041010,-460.0,0.00018607,2]
[368604643,1751229041019,-1520.33,0.00018607,2]
[368604644,1751229041028,-460.0,0.00018607,2]
[368604645,1751229041037,-460.0,0.00018607,2]
[368604646,1751229041046,-460.0,0.00018608,2]
[368604647,1751229041055,-460.0,0.00018608,2]
[368604648,1751229041064,-460.0,0.00018608,2]
[368604649,1751229041073,-830.65,0.00018608,2]
[368604650,1751229041082,-2437.24,0.00018608,2]
[368604651,1751229041091,-460.0,0.00018608,2]
[368604652,1751229041100,-460.0,0.00018608,2]
[368604653,1751229041109,-2285.19,0.00018608,2]
[368604654,1751229041118,-2536.71,0.00018608,2]
[368604655,1751229041127,-460.0,0.00018608,2]
[368604656,1751229041137,-460.0,0.00018608,2]
[368604657,1751229041146,-1312.36,0.00018608,2]
[368604658,1751229041155,-460.0,0.00018608,2]
[368604659,1751229041164,-460.0,0.00018608,2]
[368604660,1751229041174,-460.0,0.00018608,2]
[368604661,1751229041183,-460.0,0.00018609,2]
[368604662,1751229041192,-460.0,0.00018609,2]
[368604663,1751229041202,-440.0,0.00018609,2]
[368604664,1751229041211,-460.0,0.00018609,2]
[368604665,1751229041221,-220.30607457,0.00018609,2]
[368604666,1751229041230,-590.10952647,0.00018609,2]
[368604667,1751229041239,-460.0,0.00018609,2]
[368604668,1751229041249,-460.0,0.00018609,2]
[368604669,1751229041258,-460.0,0.00018609,2]
[368604670,1751229041268,-460.0,0.00018609,2]
[368604671,1751229041277,-460.0,0.00018609,2]
[368604672,1751229041286,-1228.86,0.00018609,2]
[368604673,1751229041295,-460.0,0.00018609,2]
[368604674,1751229041305,-460.0,0.00018609,2]
[368604675,1751229041314,-460.0,0.00018609,2]
[368604676,1751229041323,-575.41,0.00018609,2]
[368604677,1751229041333,-473.01385713,0.00018609,2]
[368604678,1751229041342,-460.0,0.00018609,2]
[368604679,1751229041351,-460.0,0.00018609,2]
[368604680,1751229041360,-460.0,0.00018609,2]
[368604681,1751229041370,-2024.45,0.00018609,2]
[368604682,1751229041379,-460.0,0.00018609,2]
[368604683,1751229041389,-460.0,0.00018609,2]
[368604684,1751229041398,-460.0,0.00018609,2]
[368604685,1751229041407,-460.0,0.00018609,2]
[368604686,1751229041418,-460.0,0.00018609,2]
[368604687,1751229041427,-460.0,0.00018609,2]
[368604688,1751229041437,-460.0,0.00018609,2]
[368604689,1751229041446,-752.14,0.00018609,2]
[368604690,1751229041455,-2760.35,0.00018609,2]
[368604691,1751229041465,-460.0,0.00018609,2]
[368604692,1751229041474,-460.0,0.00018609,2]
[368604693,1751229041483,-460.0,0.00018609,2]
[368604694,1751229041492,-460.0,0.00018609,2]
[368604695,1751229041502,-460.0,0.00018609,2]
[368604696,1751229041512,-460.0,0.00018609,2]
[368604697,1751229041521,-460.0,0.00018609,2]
[368604698,1751229041530,-905.04,0.00018609,2]
[368604699,1751229041540,-460.0,0.00018609,2]
[368604700,1751229041549,-460.0,0.00018609,2]
[368604701,1751229041559,-460.0,0.00018609,2]
[368604702,1751229041568,-460.0,0.00018609,2]
[368604703,1751229041577,-460.0,0.00018609,2]
[368604704,1751229041587,-460.0,0.00018609,2]
[368604705,1751229041596,-460.0,0.0001861,2]
[368604706,1751229041605,-417.25859833,0.0001861,2]
[368604707,1751229041614,-460.0,0.0001861,2]
[368604708,1751229041625,-460.0,0.0001861,2]
[368604709,1751229041635,-208.12,0.0001861,2]
[368604710,1751229041644,-554.2,0.0001861,2]
[368604711,1751229041653,-460.0,0.0001861,2]
[368604712,1751229041663,-460.0,0.0001861,2]
[368604713,1751229041673,-460.0,0.0001861,2]
[368604714,1751229041683,-460.0,0.0001861,2]
[368604715,1751229041692,-1055.91,0.0001861,2]
[368604716,1751229041703,-460.0,0.0001861,2]
[368604717,1751229041712,-460.0,0.0001861,2]
[368604718,1751229041723,-460.0,0.0001861,2]
[368604719,1751229041733,-460.0,0.0001861,2]
[368604720,1751229041742,-460.0,0.0001861,2]
[368604721,1751229041751,-460.0,0.0001861,2]
[368604722,1751229041761,-475.4,0.0001861,2]
[368604723,1751229041770,-868.93,0.0001861,2]
[368604724,1751229041779,-460.0,0.0001861,2]
[368604725,1751229041789,-460.0,0.0001861,2]
[368604726,1751229041798,-460.0,0.0001861,2]
[368604727,1751229041809,-1519.71,0.0001861,2]
[368604728,1751229041818,-460.0,0.0001861,2]
[368604729,1751229041827,-460.0,0.0001861,2]
[368604730,1751229041837,-677.78,0.0001861,2]
[368604731,1751229041846,-460.0,0.0001861,2]
[368604732,1751229041855,-460.0,0.0001861,2]
[368604733,1751229041865,-1228.96,0.0001861,2]
[368604734,1751229041874,-2966.86,0.0001861,2]
[368604735,1751229041883,-460.0,0.0001861,2]
[368604736,1751229041892,-488.16,0.0001861,2]
[368604737,1751229041901,-667.46,0.0001861,2]
[368604738,1751229041911,-696.8,0.0001861,2]
[368604739,1751229041921,-2482.97620559,0.0001861,2]
[368604740,1751229042033,-273.09634598,0.0001861,2]
[368604741,1751229042045,-962.57744843,0.0001861,2]
[368604742,1751229042055,-878.99,0.0001861,2]
[368604743,1751229042064,-69.05180179,0.0001861,2]
[368604744,1751229042075,-610.40399336,0.0001861,2]
[368604745,1751229042088,-639.55420485,0.0001861,2]
[368604746,1751229042097,-460.0,0.00018611,2]
[368604747,1751229042108,-460.0,0.00018611,2]
[368604748,1751229042117,-460.0,0.00018611,2]
[368604749,1751229042127,-460.0,0.00018611,2]
[368604750,1751229042138,-460.0,0.00018611,2]
[368604751,1751229042147,-460.0,0.00018611,2]
[368604752,1751229042156,-460.0,0.00018611,2]
[368604753,1751229042165,-460.0,0.00018611,2]
[368604754,1751229042175,-460.0,0.00018611,2]
[368604755,1751229042184,-1000.0,0.00018611,2]
[368604756,1751229042193,-460.0,0.00018611,2]
[368604757,1751229042203,-460.0,0.00018611,2]
[368604758,1751229042213,-460.0,0.00018611,2]
[368604759,1751229042222,-460.0,0.00018611,2]
[368604760,1751229042232,-676.01,0.00018611,2]
[368604761,1751229042242,-460.0,0.00018611,2]
[368604762,1751229042251,-460.0,0.00018611,2]
[368604763,1751229042260,-550.52,0.00018611,2]
[368604764,1751229042269,-460.0,0.00018611,2]
[368604765,1751229042279,-460.0,0.00018611,2]
[368604766,1751229042288,-460.0,0.00018611,2]
[368604767,1751229042297,-460.0,0.00018611,2]
[368604768,1751229042307,-460.0,0.00018611,2]
[368604769,1751229042316,-538.7,0.00018611,2]
[368604770,1751229042325,-1000.0,0.00018612,2]
[368604771,1751229042334,-210.04854608,0.00018612,2]
[368604772,1751229042343,-256.63037506,0.00018613,2]
[368604773,1751229042353,-460.0,0.00018613,2]
[368604774,1751229042362,-460.0,0.00018613,2]
[368604775,1751229042371,-460.0,0.00018613,2]
[368604776,1751229042380,-514.47,0.00018613,2]
[368604777,1751229042389,-460.0,0.00018613,2]
[368604778,1751229042399,-460.0,0.00018613,2]
[368604779,1751229042408,-460.0,0.00018613,2]
[368604780,1751229042417,-460.0,0.00018613,2]
[368604781,1751229042426,-460.0,0.00018613,2]
[368604782,1751229042435,-460.0,0.00018613,2]
[368604783,1751229042445,-460.0,0.00018613,2]
[368604784,1751229042454,-460.0,0.00018613,2]
[368604785,1751229042464,-460.0,0.00018613,2]
[368604786,1751229042474,-392.19541064,0.00018613,2]
[368604787,1751229042483,-460.0,0.00018613,2]
[368604788,1751229042492,-461.64854188,0.00018613,2]
[368604789,1751229042502,-626.38,0.00018613,2]
[368604790,1751229042512,-332.47010451,0.00018613,2]
[368604791,1751229042524,-460.0,0.00018613,2]
[368604792,1751229042533,-460.0,0.00018613,2]
[368604793,1751229042543,-577.9567405,0.00018613,2]
[368604794,1751229042552,-460.0,0.00018614,2]
[368604795,1751229042561,-566.56339886,0.00018614,2]
[368604796,1751229042571,-460.0,0.00018614,2]
[368604797,1751229042580,-460.0,0.00018614,2]
[368604798,1751229042589,-529.07908283,0.00018614,2]
[368604799,1751229042598,-372.28,0.00018614,2]
[368604800,1751229042607,-434.67811129,0.00018614,2]
[368604801,1751229042745,-7.94672016,0.00018614,2]
[368604802,1751229042754,-200.70724699,0.00018614,2]
[368604813,1751229043231,-259.29275301,0.00018614,2]
[368604814,1751229043241,-603.0,0.00018812,2]
[368604815,1751229043251,-460.0,0.00018881,2]
[368604816,1751229043261,-460.0,0.00018881,2]
[368604817,1751229043270,-460.0,0.00018881,2]
[368604818,1751229043280,-460.0,0.00018881,2]
[368604819,1751229043289,-1520.33,0.00018881,2]
[368604820,1751229043298,-591.16,0.00018881,2]
[368604821,1751229043307,-460.0,0.00018881,2]
[368604822,1751229043316,-460.0,0.00018882,2]
[368604823,1751229043325,-460.0,0.00018882,2]
[368604824,1751229043335,-460.0,0.00018882,2]
[368604826,1751229043344,-2437.24,0.00018882,2]
[368604828,1751229043353,-460.0,0.00018882,2]
[368604830,1751229043362,-460.0,0.00018882,2]
[368604832,1751229043371,-2285.19,0.00018882,2]
[368604834,1751229043381,-2536.71,0.00018882,2]
[368604836,1751229043390,-460.0,0.00018882,2]
[368604838,1751229043399,-1312.36,0.00018882,2]
[368604840,1751229043408,-460.0,0.00018882,2]
[368604842,1751229043417,-460.0,0.00018882,2]
[368604844,1751229043426,-460.0,0.00018882,2]
[368604846,1751229043435,-116.19570469,0.00018883,2]
[368604848,1751229043447,-343.80429531,0.00018883,2]
[368604850,1751229043456,-187.02040023,0.00018883,2]
[368604852,1751229043467,-272.97959977,0.00018883,2]
[368604854,1751229043476,-460.0,0.00018883,2]
[368604856,1751229043485,-160.0,0.00018883,2]
[368604858,1751229043494,-460.0,0.00018883,2]
[368604860,1751229043503,-460.0,0.00018883,2]
[368604862,1751229043512,-1228.86,0.00018883,2]
[368604864,1751229043521,-460.0,0.00018883,2]
[368604866,1751229043531,-460.0,0.00018883,2]
[368604868,1751229043540,-460.0,0.00018883,2]
[368604870,1751229043549,-575.41,0.00018883,2]
[368604871,1751229043558,-460.0,0.00018883,2]
[368604873,1751229043567,-2024.45,0.00018883,2]
[368604875,1751229043577,-460.0,0.00018883,2]
[368604876,1751229043587,-460.0,0.00018883,2]
[368604878,1751229043596,-460.0,0.00018883,2]
[368604880,1751229043606,-460.0,0.00018883,2]
[368604881,1751229043615,-460.0,0.00018883,2]
[368604883,1751229043625,-752.14,0.00018883,2]
[368604884,1751229043634,-2760.35,0.00018883,2]
[368604886,1751229043643,-460.0,0.00018883,2]
[368604887,1751229043653,-460.0,0.00018883,2]
[368604888,1751229043662,-460.0,0.00018883,2]
[368604889,1751229043671,-460.0,0.00018883,2]
[368604890,1751229043681,-460.0,0.00018883,2]
[368604891,1751229043691,-460.0,0.00018883,2]
[368604892,1751229043700,-460.0,0.00018883,2]
[368604893,1751229043710,-905.04,0.00018883,2]
[368604894,1751229043720,-460.0,0.00018883,2]
[368604895,1751229043729,-460.0,0.00018883,2]
[368604896,1751229043739,-460.0,0.00018883,2]
[368604897,1751229043748,-460.0,0.00018883,2]
[368604898,1751229043757,-460.0,0.00018883,2]
[368604899,1751229043766,-460.0,0.00018883,2]
[368604900,1751229043775,-460.0,0.00018884,2]
[368604901,1751229043785,-460.0,0.00018884,2]
[368604902,1751229043794,-460.0,0.00018884,2]
[368604903,1751229043804,-554.2,0.00018884,2]
[368604904,1751229043821,-460.0,0.00018884,2]
[368604905,1751229043833,-460.0,0.00018884,2]
[368604906,1751229043844,-460.0,0.00018884,2]
[368604907,1751229043854,-460.0,0.00018884,2]
[368604908,1751229043864,-1055.91,0.00018884,2]
[368604909,1751229043874,-460.0,0.00018884,2]
[368604910,1751229043884,-460.0,0.00018884,2]
[368604911,1751229043894,-460.0,0.00018884,2]
[368604912,1751229043904,-460.0,0.00018884,2]
[368604913,1751229043913,-475.4,0.00018884,2]
[368604914,1751229043924,-868.93,0.00018884,2]
[368604915,1751229043935,-460.0,0.00018884,2]
[368604916,1751229043944,-460.0,0.00018884,2]
[368604917,1751229043954,-460.0,0.00018884,2]
[368604918,1751229043963,-1519.71,0.00018884,2]
[368604919,1751229043974,-460.0,0.00018884,2]
[368604920,1751229043984,-460.0,0.00018884,2]
[368604921,1751229043993,-677.78,0.00018884,2]
[368604922,1751229044004,-460.0,0.00018884,2]
[368604923,1751229044014,-460.0,0.00018884,2]
[368604924,1751229044024,-1228.96,0.00018884,2]
[368604925,1751229044034,-2966.86,0.00018884,2]
[368604926,1751229044044,-460.0,0.00018884,2]
[368604927,1751229044054,-488.16,0.00018884,2]
[368604928,1751229044063,-667.46,0.00018884,2]
[368604929,1751229044073,-696.8,0.00018884,2]
[368604930,1751229044083,-3718.65,0.00018884,2]
[368604931,1751229044092,-878.99,0.00018884,2]
[368604932,1751229044102,-1319.01,0.00018884,2]
[368604933,1751229044111,-460.0,0.00018885,2]
[368604934,1751229044121,-460.0,0.00018885,2]
[368604935,1751229044131,-460.0,0.00018885,2]
[368604936,1751229044140,-460.0,0.00018885,2]
[368604937,1751229044150,-460.0,0.00018885,2]
[368604938,1751229044159,-460.0,0.00018885,2]
[368604939,1751229044169,-460.0,0.00018885,2]
[368604940,1751229044179,-276.38414515,0.00018885,2]
[368604941,1751229044189,-460.0,0.00018885,2]
[368604942,1751229044199,-460.0,0.00018885,2]
[368604943,1751229044209,-460.0,0.00018885,2]
[368604944,1751229044219,-228.423612,0.00018885,2]
[368604945,1751229044228,-676.01,0.00018885,2]
[368604946,1751229044238,-460.0,0.00018885,2]
[368604947,1751229044247,-497.34,0.00018885,2]
[368604948,1751229044257,-550.52,0.00018885,2]
[368604949,1751229044267,-578.88,0.00018885,2]
[368604950,1751229044276,-460.0,0.00018885,2]
[368604951,1751229044286,-547.66962904,0.00018887,2]
[368604952,1751229044296,-460.0,0.00018887,2]
[368604953,1751229044306,-460.0,0.00018887,2]
[368604954,1751229044316,-514.47,0.00018887,2]
[368604955,1751229044325,-460.0,0.00018887,2]
[368604956,1751229044335,-460.0,0.00018887,2]
[368604957,1751229044344,-441.44,0.00018887,2]
[368604958,1751229044353,-460.0,0.00018887,2]
[368604959,1751229044363,-460.0,0.00018887,2]
[368604960,1751229044373,-626.38,0.00018887,2]
[368604961,1751229044383,-221.81679866,0.00018888,2]
[368604962,1751229044392,-460.0,0.00018888,2]
[368604963,1751229044402,-460.0,0.00018888,2]
[368604964,1751229044411,-150.0,0.000189,2]
[368604965,1751229044421,-603.0,0.00018963,2]
[368604966,1751229044430,-500.0,0.00019023,2]
[368604967,1751229044443,-395.67986745,0.00019112,2]
[368604968,1751229044453,-500.0,0.00019112,2]
[368604969,1751229044463,-500.0,0.00019112,2]
[368604970,1751229044473,-500.0,0.00019112,2]
[368604971,1751229044482,-500.0,0.00019112,2]
[368604972,1751229044492,-500.0,0.00019112,2]
[368604973,1751229044502,-500.0,0.00019112,2]
[368604974,1751229044512,-500.0,0.00019112,2]
[368604975,1751229044522,-500.0,0.00019112,2]
[368604976,1751229044532,-500.0,0.00019112,2]
[368604977,1751229044543,-500.0,0.00019112,2]
[368604978,1751229044552,-369.03910652,0.00019112,2]
[368604979,1751229044563,-500.0,0.0001915,2]
[368604980,1751229044573,-500.0,0.0001915,2]
[368604981,1751229044583,-488.91558605,0.00019152,2]
[368604982,1751229044594,-865.9155897,0.00019152,2]
[368604983,1751229044604,-500.0,0.00019154,2]
[368604984,1751229044615,-500.0,0.00019154,2]
[368604985,1751229044625,-500.0,0.00019154,2]
[368604986,1751229044635,-500.56387341,0.00019154,2]
[368604987,1751229044645,-500.0,0.00019154,2]
[368604988,1751229044655,-182.82418773,0.00019154,2]
[368604989,1751229044666,-460.0,0.00019155,2]
[368604990,1751229044675,-460.0,0.00019155,2]
[368604991,1751229044685,-460.0,0.00019155,2]
[368604992,1751229044695,-1520.33,0.00019155,2]
[368604993,1751229044705,-309.42,0.00019155,2]
[368604994,1751229044714,-460.0,0.00019156,2]
[368604995,1751229044724,-2437.24,0.00019156,2]
[368604996,1751229044735,-460.0,0.00019156,2]
[368604997,1751229044744,-460.0,0.00019156,2]
[368604998,1751229044754,-2285.19,0.00019156,2]
[368604999,1751229044769,-2536.71,0.00019156,2]
[368605000,1751229044779,-460.0,0.00019156,2]
[368605001,1751229044789,-1312.36,0.00019156,2]
[368605002,1751229044799,-460.0,0.00019156,2]
[368605003,1751229044809,-460.0,0.00019156,2]
[368605004,1751229044820,-460.0,0.00019156,2]
[368605005,1751229044829,-1228.86,0.00019157,2]
[368605006,1751229044839,-572.4651372,0.00019157,2]
[368605007,1751229044848,-460.0,0.00019157,2]
[368605008,1751229044858,-575.41,0.00019157,2]
[368605009,1751229044868,-460.0,0.00019157,2]
[368605010,1751229044878,-2024.45,0.00019157,2]
[368605011,1751229044887,-460.0,0.00019157,2]
[368605012,1751229044896,-460.0,0.00019157,2]
[368605013,1751229044906,-460.0,0.00019157,2]
[368605014,1751229044918,-752.14,0.00019157,2]
[368605015,1751229044931,-2760.35,0.00019157,2]
[368605016,1751229044940,-460.0,0.00019157,2]